bitfinex-derivatives/quotes_BNBF0:USTF0_20251220
["timestamp","ask_amount","ask_price","bid_price","bid_amount"]
[1766268712677,0.66860093,852.21,851.37,0.20419479]
[1766268712881,0.66860093,852.2,851.37,0.20419479]
[1766268713081,0.66860093,852.19,851.37,0.20419479]
[1766268713381,0.66860093,852.18,851.37,0.20419479]
[1766268713677,0.66860093,852.17,851.37,0.20419479]
[1766268713877,0.66860093,852.16,851.37,0.20419479]
[1766268714084,0.66860093,852.15,851.37,0.20419479]
[1766268714278,0.66860093,852.14,851.37,0.20419479]
[1766268714482,0.66860093,852.13,851.37,0.20419479]
[1766268714682,0.66860093,852.12,851.37,0.20419479]
[1766268714879,0.66860093,852.11,851.37,0.20419479]
[1766268715183,0.66860093,852.1,851.37,0.20419479]
[1766268715483,0.66860093,852.09,851.37,0.20419479]
[1766268715684,0.66860093,852.08,851.37,0.20419479]
[1766268715884,0.66860093,852.07,851.37,0.20419479]
[1766268716184,0.66860093,852.06,851.37,0.20419479]
[1766268716484,0.66860093,852.05,851.37,0.20419479]
[1766268716679,0.66860093,852.04,851.37,0.20419479]
[1766268716980,0.87822508,852.31,851.37,0.20419479]
[1766268717283,0.66860172,852.3,851.37,0.20419479]
[1766268717484,0.66860172,852.29,851.37,0.20419479]
[1766268717683,0.66860172,852.28,851.37,0.20419479]
[1766268717982,0.66860172,852.27,851.37,0.20419479]
[1766268718182,0.66860172,852.26,851.37,0.20419479]
[1766268718384,0.66860172,852.25,851.37,0.20419479]
[1766268718679,0.66860172,852.24,851.37,0.20419479]
[1766268718883,0.66860172,852.23,851.37,0.20419479]
[1766268719080,0.66860172,852.22,851.37,0.20419479]
[1766268719280,0.66860172,852.21,851.37,0.20419479]
[1766268719580,0.66860172,852.2,851.37,0.20419479]
[1766268719779,0.66860172,852.19,851.37,0.20419479]
[1766268719984,0.66860172,852.18,851.37,0.20419479]
[1766268720180,0.66860172,852.17,851.37,0.20419479]
[1766268720382,0.66860172,852.16,851.37,0.20419479]
[1766268720679,0.66860172,852.15,851.37,0.20419479]
[1766268720980,0.66860172,852.14,851.37,0.20419479]
[1766268721183,0.66860172,852.13,851.37,0.20419479]
[1766268721382,0.66860172,852.12,851.37,0.20419479]
[1766268721584,0.66860172,852.11,851.37,0.20419479]
[1766268721784,0.66860172,852.1,851.37,0.20419479]
[1766268721985,0.66860172,852.09,851.37,0.20419479]
[1766268722281,0.87822508,852.31,851.37,0.20419479]
[1766268722282,0.66860172,852.08,851.37,0.20419479]
[1766268722484,0.66860172,852.07,851.37,0.20419479]
[1766268722681,0.66860172,852.06,851.37,0.20419479]
[1766268722882,0.66860172,852.05,851.37,0.20419479]
[1766268723184,0.66860172,852.04,851.37,0.20419479]
[1766268723384,0.87822508,852.31,851.37,0.20419479]
[1766268723585,0.66860131,852.3,851.37,0.20419479]
[1766268723881,0.66860131,852.29,851.37,0.20419479]
[1766268724085,0.66860131,852.28,851.37,0.20419479]
[1766268724283,0.66860131,852.27,851.37,0.20419479]
[1766268724586,0.66860131,852.26,851.37,0.20419479]
[1766268724884,0.66860131,852.25,851.37,0.20419479]
[1766268725083,0.66860131,852.24,851.37,0.20419479]
[1766268725282,0.66860131,852.23,851.37,0.20419479]
[1766268725484,0.66860131,852.22,851.37,0.20419479]
[1766268725687,0.66860131,852.21,851.37,0.20419479]
[1766268725888,0.66860131,852.2,851.37,0.20419479]
[1766268726088,0.66860131,852.19,851.37,0.20419479]
[1766268726285,0.66860131,852.18,851.37,0.20419479]
[1766268726587,0.66860131,852.17,851.37,0.20419479]
[1766268726788,0.66860131,852.16,851.37,0.20419479]
[1766268726986,0.66860131,852.15,851.37,0.20419479]
[1766268727185,0.66860131,852.14,851.37,0.20419479]
[1766268727390,0.66860131,852.13,851.37,0.20419479]
[1766268727585,0.66860131,852.12,851.37,0.20419479]
[1766268727790,0.66860131,852.11,851.37,0.20419479]
[1766268727991,0.66860131,852.1,851.37,0.20419479]
[1766268728192,0.66860131,852.09,851.37,0.20419479]
[1766268728391,0.66860131,852.08,851.37,0.20419479]
[1766268728589,0.66860131,852.07,851.37,0.20419479]
[1766268728791,0.66860131,852.06,851.37,0.20419479]
[1766268728989,0.66860131,852.05,851.37,0.20419479]
[1766268729293,0.66860131,852.04,851.37,0.20419479]
[1766268729487,0.87822508,852.31,851.37,0.20419479]
[1766268729687,0.66860135,852.3,851.37,0.20419479]
[1766268729892,0.66860135,852.29,851.37,0.20419479]
[1766268730089,0.66860135,852.28,851.37,0.20419479]
[1766268730292,0.66860135,852.27,851.37,0.20419479]
[1766268730593,0.66860135,852.26,851.37,0.20419479]
[1766268730788,0.66860135,852.25,851.37,0.20419479]
[1766268730992,0.66860135,852.24,851.37,0.20419479]
[1766268731288,0.66860135,852.23,851.37,0.20419479]
[1766268731589,0.66860135,852.22,851.37,0.20419479]
[1766268731793,0.66860135,852.21,851.37,0.20419479]
[1766268732088,0.66860135,852.2,851.37,0.20419479]
[1766268732289,0.66860135,852.19,851.37,0.20419479]
[1766268732488,0.66860135,852.18,851.37,0.20419479]
[1766268732688,0.66860135,852.17,851.37,0.20419479]
[1766268732891,0.66860135,852.16,851.37,0.20419479]
[1766268733093,0.66860135,852.15,851.37,0.20419479]
[1766268733291,0.66860135,852.14,851.37,0.20419479]
[1766268733488,0.66860135,852.13,851.37,0.20419479]
[1766268733690,0.66860135,852.12,851.37,0.20419479]
[1766268733889,0.66860135,852.11,851.37,0.20419479]
[1766268734193,0.66860135,852.1,851.37,0.20419479]
[1766268734490,0.66860135,852.09,851.37,0.20419479]
[1766268734691,0.66860135,852.08,851.37,0.20419479]
[1766268734891,0.66860135,852.07,851.37,0.20419479]
[1766268735095,0.66860135,852.06,851.37,0.20419479]
[1766268735294,0.66860135,852.05,851.37,0.20419479]
[1766268735492,0.66860135,852.04,851.37,0.20419479]
[1766268735691,0.87822508,852.31,851.37,0.20419479]
[1766268735891,0.66860131,852.3,851.37,0.20419479]
[1766268736091,0.66860131,852.29,851.37,0.20419479]
[1766268736295,0.66860131,852.28,851.37,0.20419479]
[1766268736496,0.66860131,852.27,851.37,0.20419479]
[1766268736792,0.66860131,852.26,851.37,0.20419479]
[1766268737095,0.66860131,852.25,851.37,0.20419479]
[1766268737295,0.66860131,852.24,851.37,0.20419479]
[1766268737493,0.66860131,852.23,851.37,0.20419479]
[1766268737697,0.66860131,852.22,851.37,0.20419479]
[1766268737896,0.66860131,852.21,851.37,0.20419479]
[1766268738097,0.87822508,852.31,851.37,0.20419479]
[1766268738299,0.87822508,852.33,851.47,1.17423221]
[1766268768125,32.70808944,852.61,851.37,0.20419479]
[1766268768126,0.87822508,852.32,851.46,1.17423221]
[1766268769430,4.97362466,852.32,851.46,1.17423221]
[1766268780232,0.87822508,852.29,851.44,1.17423221]
[1766268780432,0.87822508,852.28,851.42,1.17423221]
[1766268780634,0.87822508,852.25,851.4,1.17423221]
[1766268780836,4.09539958,852.32,851.31,1.17423221]
[1766268780837,0.87822508,852.16,851.31,1.17423221]
[1766268781335,0.87822508,852.16,851.3,1.17423221]
[1766268781637,0.87822508,852.19,851.27,1.17423221]
[1766268782335,0.87822508,852.2,851.25,1.37846895]
[1766268782833,0.87822508,852.19,851.25,0.20423674]
[1766268783436,0.87822508,852.2,851.25,0.20423674]
[1766268784440,0.87822508,852.21,851.25,0.20423674]
[1766268785237,0.87822508,852.2,851.25,0.20423674]
[1766268785440,0.87822508,852.11,851.15,32.50009608]
[1766268785639,0.87822508,852.06,851.15,32.50009608]
[1766268786441,0.87822508,852.05,851.15,32.50009608]
[1766268786936,0.87822508,852.0,850.94,1.17423221]
[1766268787337,0.87822508,852.03,851.05,0.20430388]
[1766268788238,0.87822508,852.05,851.05,0.20430388]
[1766268789343,0.87822508,852.06,851.05,0.20430388]
[1766268790240,0.87822508,852.05,851.05,0.20430388]
[1766268790438,0.87822508,852.05,850.96,5.84087672]
[1766268790740,0.87822508,851.99,850.96,5.84087672]
[1766268790938,0.87822508,851.97,850.96,5.84087672]
[1766268791438,0.87822508,851.96,850.96,5.84087672]
[1766268792441,0.87822508,851.97,850.96,5.84087672]
[1766268793445,0.87822508,851.99,850.96,5.84087672]
[1766268793645,0.87822508,851.96,850.96,5.84087672]
[1766268794344,0.87822508,851.98,850.96,5.84087672]
[1766268795442,0.87822508,852.0,850.96,5.84087672]
[1766268795646,0.87822508,851.97,850.96,5.84087672]
[1766268796348,0.87822508,851.99,850.96,5.84087672]
[1766268797448,0.87822508,852.01,850.96,5.84087672]
[1766268797648,0.87822508,851.99,850.96,5.84087672]
[1766268798245,0.66249637,851.98,850.96,5.84087672]
[1766268798444,0.66249637,851.97,850.96,5.84087672]
[1766268798649,0.66249637,851.96,850.96,5.84087672]
[1766268798849,0.66249637,851.95,850.96,5.84087672]
[1766268799044,0.66249637,851.94,850.96,5.84087672]
[1766268799244,0.66249637,851.93,850.96,5.84087672]
[1766268799450,0.66249637,851.92,850.96,5.84087672]
[1766268799646,0.66249637,851.91,850.96,5.84087672]
[1766268799848,0.66249637,851.9,850.96,5.84087672]
[1766268800050,0.66249637,851.89,850.96,5.84087672]
[1766268800251,0.66249637,851.88,850.96,5.84087672]
[1766268800447,0.66249637,851.87,850.96,5.84087672]
[1766268800748,0.66249637,851.86,850.96,5.84087672]
[1766268800950,0.66249637,851.85,850.96,5.84087672]
[1766268801149,0.66249637,851.84,850.96,5.84087672]
[1766268801348,0.66249637,851.83,850.96,5.84087672]
[1766268801549,0.66249637,851.82,850.96,5.84087672]
[1766268801752,0.66249637,851.81,850.96,5.84087672]
[1766268801952,0.66249637,851.8,850.96,5.84087672]
[1766268802247,0.66249637,851.79,850.96,5.84087672]
[1766268802455,0.66249637,851.78,850.96,5.84087672]
[1766268802652,0.66249637,851.77,850.96,5.84087672]
[1766268802953,0.66249637,851.76,850.96,5.84087672]
[1766268803154,0.87822508,852.03,850.96,5.84087672]
[1766268803351,0.66149402,852.02,850.96,5.84087672]
[1766268803549,0.66149402,852.01,850.96,5.84087672]
[1766268803849,0.66149402,852.0,850.96,5.84087672]
[1766268804053,0.66149402,851.99,850.96,5.84087672]
[1766268804254,0.66149402,851.98,850.96,5.84087672]
[1766268804550,0.66149402,851.97,850.96,5.84087672]
[1766268804750,0.66149402,851.96,850.96,5.84087672]
[1766268804950,0.66149402,851.95,850.96,5.84087672]
[1766268805154,0.66149402,851.94,850.96,5.84087672]
[1766268805450,0.66149402,851.93,850.78,0.20433747]
[1766268805649,0.66149402,851.92,850.78,0.20433747]
[1766268805849,0.66149402,851.91,850.78,0.20433747]
[1766268806151,0.66149402,851.9,850.78,0.20433747]
[1766268806354,0.66149402,851.89,850.78,0.20433747]
[1766268806551,0.66149402,851.88,850.78,0.20433747]
[1766268806751,0.66149402,851.87,850.78,0.20433747]
[1766268806952,0.66149402,851.86,850.78,0.20433747]
[1766268807151,0.66149402,851.85,850.78,0.20433747]
[1766268807451,0.66149402,851.84,850.78,0.20433747]
[1766268807656,0.66149402,851.83,850.78,0.20433747]
[1766268807856,0.66149402,851.82,850.78,0.20433747]
[1766268808057,0.66149402,851.81,850.78,0.20433747]
[1766268808258,0.66149402,851.8,850.78,0.20433747]
[1766268808452,0.66149402,851.79,850.78,0.20433747]
[1766268808654,0.66149402,851.78,850.78,0.20433747]
[1766268808859,0.66149402,851.77,850.78,0.20433747]
[1766268809158,0.66149402,851.76,850.78,0.20433747]
[1766268809357,0.66149402,851.75,850.78,0.20433747]
[1766268809658,0.66149402,851.74,850.78,0.20433747]
[1766268809854,0.87822508,852.01,850.78,0.20433747]
[1766268810057,0.66077869,852.0,850.78,0.20433747]
[1766268810359,0.66077869,851.99,850.78,0.20433747]
[1766268810658,0.66077869,851.98,850.78,0.20433747]
[1766268810958,0.66077869,851.97,850.78,0.20433747]
[1766268811156,0.66077869,851.96,850.78,0.20433747]
[1766268811355,0.66077869,851.95,850.78,0.20433747]
[1766268811560,0.66077869,851.94,850.78,0.20433747]
[1766268811760,0.66077869,851.93,850.78,0.20433747]
[1766268811960,0.66077869,851.92,850.78,0.20433747]
[1766268812158,0.66077869,851.91,850.78,0.20433747]
[1766268812356,0.66077869,851.9,850.78,0.20433747]
[1766268812557,0.66077869,851.89,850.78,0.20433747]
[1766268812755,0.66077869,851.88,850.78,0.20433747]
[1766268812960,0.66077869,851.87,850.78,0.20433747]
[1766268813161,0.66077869,851.86,850.78,0.20433747]
[1766268813461,0.66077869,851.85,850.78,0.20433747]
[1766268813661,0.66077869,851.84,850.78,0.20433747]
[1766268813856,0.66077869,851.83,850.78,0.20433747]
[1766268814160,0.66077869,851.82,850.78,0.20433747]
[1766268814358,0.66077869,851.81,850.78,0.20433747]
[1766268814558,0.66077869,851.8,850.78,0.20433747]
[1766268814757,0.66077869,851.79,850.78,0.20433747]
[1766268814957,0.66077869,851.78,850.78,0.20433747]
[1766268815260,0.66077869,851.77,850.78,0.20433747]
[1766268815458,0.66077869,851.76,850.78,0.20433747]
[1766268815658,0.66077869,851.75,850.78,0.20433747]
[1766268815858,0.87822508,852.02,850.78,0.20433747]
[1766268816057,0.66034768,852.01,850.78,0.20433747]
[1766268816261,0.66034768,852.0,850.78,0.20433747]
[1766268816457,0.66034768,851.99,850.78,0.20433747]
[1766268816656,0.66034768,851.98,850.78,0.20433747]
[1766268816856,0.66034768,851.97,850.78,0.20433747]
[1766268817062,0.66034768,851.96,850.78,0.20433747]
[1766268817259,0.66034768,851.95,850.78,0.20433747]
[1766268817463,0.66034768,851.94,850.78,0.20433747]
[1766268817663,0.66034768,851.93,850.78,0.20433747]
[1766268817860,0.66034768,851.92,850.78,0.20433747]
[1766268818060,0.66034768,851.91,850.78,0.20433747]
[1766268818363,0.66034768,851.9,850.78,0.20433747]
[1766268818664,0.66034768,851.89,850.78,0.20433747]
[1766268818862,0.66034768,851.88,850.78,0.20433747]
[1766268819166,0.66034768,851.87,850.78,0.20433747]
[1766268819467,0.66034768,851.86,850.78,0.20433747]
[1766268819666,0.66034768,851.85,850.78,0.20433747]
[1766268819966,0.66034768,851.84,850.78,0.20433747]
[1766268820163,0.66034768,851.83,850.78,0.20433747]
[1766268820465,0.66034768,851.82,850.78,0.20433747]
[1766268820668,0.66034768,851.81,850.78,0.20433747]
[1766268820869,0.66034768,851.8,850.78,0.20433747]
[1766268821070,0.66034768,851.79,850.78,0.20433747]
[1766268821267,0.66034768,851.78,850.78,0.20433747]
[1766268821570,0.66034768,851.77,850.78,0.20433747]
[1766268821870,0.66034768,851.76,850.78,0.20433747]
[1766268822067,0.66034768,851.75,850.78,0.20433747]
[1766268822365,0.87822508,852.02,850.78,0.20433747]
[1766268822571,0.66044858,852.01,850.78,0.20433747]
[1766268822771,0.66044858,852.0,850.78,0.20433747]
[1766268822971,0.66044858,851.99,850.78,0.20433747]
[1766268823169,0.66044858,851.98,850.78,0.20433747]
[1766268823373,0.66044858,851.97,850.78,0.20433747]
[1766268823572,0.66044858,851.96,850.78,0.20433747]
[1766268823772,0.66044858,851.95,850.78,0.20433747]
[1766268823972,0.66044858,851.94,850.78,0.20433747]
[1766268824168,0.66044858,851.93,850.78,0.20433747]
[1766268824371,0.66044858,851.92,850.78,0.20433747]
[1766268824574,0.66044858,851.91,850.78,0.20433747]
[1766268824873,0.66044858,851.9,850.78,0.20433747]
[1766268825172,0.66044858,851.89,850.78,0.20433747]
[1766268825372,0.66044858,851.88,850.78,0.20433747]
[1766268825576,0.66044858,851.87,850.78,0.20433747]
[1766268825770,0.66044858,851.86,850.78,0.20433747]
[1766268825973,0.66044858,851.85,850.78,0.20433747]
[1766268826273,0.66044858,851.84,850.78,0.20433747]
[1766268826472,0.87822508,852.11,850.78,0.20433747]
[1766268826773,0.66089125,852.1,850.78,0.20433747]
[1766268826972,0.66089125,852.09,850.78,0.20433747]
[1766268827273,0.66089125,852.08,850.78,0.20433747]
[1766268827574,0.66089125,852.07,850.78,0.20433747]
[1766268827770,0.66089125,852.06,850.78,0.20433747]
[1766268828072,0.66089125,852.05,850.78,0.20433747]
[1766268828269,0.66089125,852.04,850.78,0.20433747]
[1766268828573,0.66089125,852.03,850.78,0.20433747]
[1766268828771,0.66089125,852.02,850.78,0.20433747]
[1766268829074,0.66089125,852.01,850.78,0.20433747]
[1766268829375,0.66089125,852.0,850.78,0.20433747]
[1766268829675,0.66089125,851.99,850.78,0.20433747]
[1766268829872,0.66089125,851.98,850.78,0.20433747]
[1766268830074,0.66089125,851.97,850.78,0.20433747]
[1766268830273,0.66089125,851.96,850.78,0.20433747]
[1766268830473,0.66089125,851.95,850.78,0.20433747]
[1766268830676,0.66089125,851.94,850.78,0.20433747]
[1766268830876,0.66089125,851.93,850.78,0.20433747]
[1766268831077,0.66089125,851.92,850.78,0.20433747]
[1766268831277,0.66089125,851.91,850.78,0.20433747]
[1766268831477,0.66089125,851.9,850.78,0.20433747]
[1766268831674,0.66089125,851.89,850.78,0.20433747]
[1766268831876,0.66089125,851.88,850.78,0.20433747]
[1766268832076,0.66089125,851.87,850.78,0.20433747]
[1766268832277,0.66089125,851.86,850.78,0.20433747]
[1766268832473,0.66089125,851.85,850.78,0.20433747]
[1766268832678,0.66089125,851.84,850.78,0.20433747]
[1766268832875,0.66089125,851.83,850.78,0.20433747]
[1766268833074,0.66089125,851.82,850.78,0.20433747]
[1766268833280,0.66089125,851.81,850.78,0.20433747]
[1766268833479,0.66089125,851.8,850.78,0.20433747]
[1766268833676,0.66089125,851.79,850.78,0.20433747]
[1766268833880,0.87822508,852.06,850.78,0.20433747]
[1766268834175,0.66253892,852.05,850.78,0.20433747]
[1766268834376,1.540764,852.05,850.78,0.20433747]
[1766268834574,0.66253892,852.04,850.78,0.20433747]
[1766268835379,0.87822508,852.03,850.78,0.20433747]
[1766268835579,0.66253892,852.02,850.78,0.20433747]
[1766268836379,0.87822508,852.01,850.78,0.20433747]
[1766268836576,0.66253892,852.0,850.78,0.20433747]
[1766268837374,0.87822508,851.99,850.78,0.20433747]
[1766268837576,0.66253892,851.98,850.78,0.20433747]
[1766268838481,0.87822508,851.96,850.78,0.20433747]
[1766268838678,0.66253892,851.95,850.78,0.20433747]
[1766268839382,0.66253892,851.94,850.78,0.20433747]
[1766268839678,0.66253892,851.93,850.78,0.20433747]
[1766268839878,0.66253892,851.92,850.78,0.20433747]
[1766268840083,0.66253892,851.91,850.78,0.20433747]
[1766268840281,0.66253892,851.9,850.78,0.20433747]
[1766268840479,0.66253892,851.89,850.78,0.20433747]
[1766268840683,0.66253892,851.88,850.78,0.20433747]
[1766268840884,0.66253892,851.87,850.78,0.20433747]
[1766268841083,0.66253892,851.86,850.78,0.20433747]
[1766268841285,0.66253892,851.85,850.78,0.20433747]
[1766268841589,0.66253892,851.84,850.78,0.20433747]
[1766268841783,0.66253892,851.83,850.78,0.20433747]
[1766268842085,0.66253892,851.82,850.78,0.20433747]
[1766268842288,0.66253892,851.81,850.78,0.20433747]
[1766268842589,0.66253892,851.8,850.78,0.20433747]
[1766268842788,0.66253892,851.79,850.78,0.20433747]
[1766268842990,0.66253892,851.78,850.78,0.20433747]
[1766268843190,0.66253892,851.77,850.78,0.20433747]
[1766268843390,0.66253892,851.76,850.78,0.20433747]
[1766268843690,0.66253892,851.75,850.78,0.20433747]
[1766268843986,0.66253892,851.74,850.78,0.20433747]
[1766268844191,0.66253892,851.73,850.78,0.20433747]
[1766268844391,0.66253892,851.72,850.78,0.20433747]
[1766268844686,0.66253892,851.71,850.78,0.20433747]
[1766268844887,0.66253892,851.7,850.78,0.20433747]
[1766268845086,0.66253892,851.69,850.78,0.20433747]
[1766268845292,0.66253892,851.68,850.78,0.20433747]
[1766268845487,0.66253892,851.67,850.78,0.20433747]
[1766268845691,0.87822508,851.94,850.78,0.20433747]
[1766268845891,0.66627028,851.93,850.78,0.20433747]
[1766268846091,0.66627028,851.92,850.78,0.20433747]
[1766268846292,0.66627028,851.91,850.78,0.20433747]
[1766268846490,0.66627028,851.9,850.78,0.20433747]
[1766268846694,0.66627028,851.89,850.78,0.20433747]
[1766268846993,0.66627028,851.88,850.78,0.20433747]
[1766268847292,0.66627028,851.87,850.78,0.20433747]
[1766268847489,0.66627028,851.86,850.78,0.20433747]
[1766268847693,0.66627028,851.85,850.78,0.20433747]
[1766268847892,0.87822508,852.01,850.78,0.20433747]
[1766268847893,0.66627028,851.84,850.78,0.20433747]
[1766268848092,0.66627028,851.83,850.78,0.20433747]
[1766268848293,0.66627028,851.82,850.78,0.20433747]
[1766268848493,0.66627028,851.81,850.78,0.20433747]
[1766268848692,0.66627028,851.8,850.78,0.20433747]
[1766268848896,0.66627028,851.79,850.78,0.20433747]
[1766268849094,0.66627028,851.78,850.78,0.20433747]
[1766268849297,0.66627028,851.77,850.78,0.20433747]
[1766268849591,0.66627028,851.76,850.78,0.20433747]
[1766268849795,0.66627028,851.75,850.78,0.20433747]
[1766268849995,0.66627028,851.74,850.78,0.20433747]
[1766268850296,1.16999314,852.17,850.78,0.20433747]
[1766268850297,0.87822508,852.02,850.78,0.20433747]
[1766268850496,0.66633729,852.01,850.78,0.20433747]
[1766268850692,0.66633729,852.0,850.78,0.20433747]
[1766268850996,0.66633729,851.99,850.78,0.20433747]
[1766268851296,0.66633729,851.98,850.78,0.20433747]
[1766268851492,0.66633729,851.97,850.78,0.20433747]
[1766268851690,0.66633729,851.96,850.78,0.20433747]
[1766268851892,0.66633729,851.95,850.78,0.20433747]
[1766268852191,0.66633729,851.94,850.78,0.20433747]
[1766268852397,0.66633729,851.93,850.78,0.20433747]
[1766268852596,0.66633729,851.92,850.78,0.20433747]
[1766268852896,0.66633729,851.91,850.78,0.20433747]
[1766268853096,0.66633729,851.9,850.78,0.20433747]
[1766268853298,0.66633729,851.89,850.78,0.20433747]
[1766268853499,0.66633729,851.88,850.78,0.20433747]
[1766268853695,0.66633729,851.87,850.78,0.20433747]
[1766268853899,0.66633729,851.86,850.78,0.20433747]
[1766268854195,0.66633729,851.85,850.78,0.20433747]
[1766268854398,0.66633729,851.84,850.78,0.20433747]
[1766268854598,0.66633729,851.83,850.78,0.20433747]
[1766268854895,0.66633729,851.82,850.78,0.20433747]
[1766268855099,0.66633729,851.81,850.78,0.20433747]
[1766268855300,0.66633729,851.8,850.78,0.20433747]
[1766268855595,0.66633729,851.79,850.78,0.20433747]
[1766268855799,0.66633729,851.78,850.78,0.20433747]
[1766268856099,0.66633729,851.77,850.78,0.20433747]
[1766268856300,0.87822508,852.05,850.78,0.20433747]
[1766268856499,0.66582893,852.04,850.78,0.20433747]
[1766268856795,0.66582893,852.03,850.78,0.20433747]
[1766268857095,0.66582893,852.02,850.78,0.20433747]
[1766268857299,0.66582893,852.01,850.78,0.20433747]
[1766268857498,0.66582893,852.0,850.78,0.20433747]
[1766268857795,0.66582893,851.99,850.78,0.20433747]
[1766268857996,0.66582893,851.98,850.78,0.20433747]
[1766268858197,0.66582893,851.97,850.78,0.20433747]
[1766268858396,0.66582893,851.96,850.78,0.20433747]
[1766268858698,0.66582893,851.95,850.78,0.20433747]
[1766268858898,0.87822508,852.06,850.78,0.20433747]
[1766268858899,0.66582893,851.94,850.78,0.20433747]
[1766268859095,0.66582893,851.93,850.78,0.20433747]
[1766268859300,0.66582893,851.92,850.78,0.20433747]
[1766268859498,0.66582893,851.91,850.78,0.20433747]
[1766268859794,0.87822508,852.06,850.78,0.20433747]
[1766268859795,0.66582893,851.9,850.78,0.20433747]
[1766268859994,0.66582893,851.89,850.78,0.20433747]
[1766268860195,0.66582893,851.88,850.78,0.20433747]
[1766268860394,0.66582893,851.87,850.78,0.20433747]
[1766268860596,0.66582893,851.86,850.78,0.20433747]
[1766268860796,0.66582893,851.85,850.78,0.20433747]
[1766268860999,0.66582893,851.84,850.78,0.20433747]
[1766268861300,0.66582893,851.83,850.78,0.20433747]
[1766268861495,0.66582893,851.82,850.78,0.20433747]
[1766268861798,0.66582893,851.81,850.78,0.20433747]
[1766268862099,0.66582893,851.8,850.78,0.20433747]
[1766268862301,0.87822508,852.07,850.78,0.20433747]
[1766268862500,0.66564749,852.06,850.78,0.20433747]
[1766268862797,0.66564749,852.05,850.78,0.20433747]
[1766268862995,0.66564749,852.04,850.78,0.20433747]
[1766268863196,0.66564749,852.03,850.78,0.20433747]
[1766268863401,0.66564749,852.02,850.78,0.20433747]
[1766268863699,0.66564749,852.01,850.78,0.20433747]
[1766268863900,0.66564749,852.0,850.78,0.20433747]
[1766268864100,0.66564749,851.99,850.78,0.20433747]
[1766268864302,0.66564749,851.98,850.78,0.20433747]
[1766268864600,0.66564749,851.97,850.78,0.20433747]
[1766268864794,0.66564749,851.96,850.78,0.20433747]
[1766268864994,0.66564749,851.95,850.78,0.20433747]
[1766268865197,0.66564749,851.94,850.78,0.20433747]
[1766268865400,0.66564749,851.93,850.78,0.20433747]
[1766268865696,0.66564749,851.92,850.78,0.20433747]
[1766268865897,0.66564749,851.91,850.78,0.20433747]
[1766268866098,0.66564749,851.9,850.78,0.20433747]
[1766268866296,0.66564749,851.89,850.78,0.20433747]
[1766268866498,0.66564749,851.88,850.78,0.20433747]
[1766268866798,0.66564749,851.87,850.78,0.20433747]
[1766268867002,0.66564749,851.86,850.78,0.20433747]
[1766268867199,0.87822508,852.08,850.78,0.20433747]
[1766268867200,0.66564749,851.85,850.78,0.20433747]
[1766268867501,0.66564749,851.84,850.78,0.20433747]
[1766268867698,0.66564749,851.83,850.78,0.20433747]
[1766268867901,0.66564749,851.82,850.78,0.20433747]
[1766268868098,0.66564749,851.81,850.78,0.20433747]
[1766268868302,0.66564749,851.8,850.78,0.20433747]
[1766268868501,0.87822508,852.08,850.78,0.20433747]
[1766268868702,0.66552159,852.07,850.78,0.20433747]
[1766268868901,0.66552159,852.06,850.78,0.20433747]
[1766268869099,0.66552159,852.05,850.78,0.20433747]
[1766268869304,0.66552159,852.04,850.78,0.20433747]
[1766268869502,0.66552159,852.03,850.78,0.20433747]
[1766268869704,0.66552159,852.02,850.78,0.20433747]
[1766268869905,0.66552159,852.01,850.78,0.20433747]
[1766268870104,0.66552159,852.0,850.78,0.20433747]
[1766268870303,0.66552159,851.99,850.78,0.20433747]
[1766268870502,0.66552159,851.98,850.78,0.20433747]
[1766268870802,0.66552159,851.97,850.78,0.20433747]
[1766268871001,0.66552159,851.96,850.78,0.20433747]
[1766268871206,0.66552159,851.95,850.78,0.20433747]
[1766268871506,0.66552159,851.94,850.78,0.20433747]
[1766268871802,0.66552159,851.93,850.78,0.20433747]
[1766268872006,0.66552159,851.92,850.78,0.20433747]
[1766268872206,0.66552159,851.91,850.78,0.20433747]
[1766268872404,0.66552159,851.9,850.78,0.20433747]
[1766268872706,0.66552159,851.89,850.78,0.20433747]
[1766268872906,0.66552159,851.88,850.78,0.20433747]
[1766268873106,0.66552159,851.87,850.78,0.20433747]
[1766268873304,0.66552159,851.86,850.78,0.20433747]
[1766268873503,0.66552159,851.85,850.78,0.20433747]
[1766268873704,0.87822508,852.13,850.78,0.20433747]
[1766268874008,0.66565533,852.12,850.78,1.96260321]
[1766268874207,0.66565533,852.11,850.78,1.96260321]
[1766268874407,0.66565533,852.1,850.78,1.96260321]
[1766268874605,0.66565533,852.09,850.78,1.96260321]
[1766268874808,0.66565533,852.08,850.78,1.96260321]
[1766268875007,0.66565533,852.07,850.78,1.96260321]
[1766268875209,0.66565533,852.06,850.78,1.96260321]
[1766268875405,0.66565533,852.05,850.78,1.96260321]
[1766268875609,0.66565533,852.04,850.78,1.96260321]
[1766268875809,0.66565533,852.03,850.78,1.96260321]
[1766268876010,0.66565533,852.02,850.78,1.96260321]
[1766268876212,0.66565533,852.01,850.78,1.96260321]
[1766268876411,0.66565533,852.0,850.78,1.96260321]
[1766268876711,0.66565533,851.99,850.78,1.96260321]
[1766268877009,0.66565533,851.98,850.78,1.96260321]
[1766268877210,0.66565533,851.97,850.78,1.96260321]
[1766268877411,0.66565533,851.96,850.78,1.96260321]